bitfinex/quotes_ETHUSD_20250529
["timestamp","ask_amount","ask_price","bid_price","bid_amount"]
[1748520470148,1.054,2707.3,2707.0,3.69408402]
[1748520470390,1.054,2707.3,2707.2,8.0]
[1748520470539,1.054,2707.5,2707.2,8.0]
[1748520470741,2.5871,2707.8,2707.3,0.55]
[1748520470943,2.5871,2707.8,2707.4,8.0]
[1748520471207,2.5871,2707.8,2707.3,3.69363062]
[1748520471492,2.5871,2707.8,2707.4,11.69357759]
[1748520471702,2.5871,2707.8,2707.4,8.0]
[1748520471910,1.054,2707.8,2707.3,1.56042186]
[1748520472107,1.054,2707.8,2707.7,11.69317132]
[1748520472245,1.054,2708.0,2707.6,11.69328815]
[1748520472442,7.969,2708.2,2708.1,11.69262582]
[1748520473285,7.969,2708.2,2708.1,12.24262582]
[1748520473463,1.054,2708.5,2708.1,12.24262582]
[1748520473808,1.529,2708.7,2708.1,0.55]
[1748520474097,3.6921552,2708.5,2708.0,8.0]
[1748520474298,1.054,2708.6,2708.0,8.0]
[1748520474299,4.74600715,2708.6,2708.0,8.0]
[1748520474586,1.054,2708.6,2707.9,8.55]
[1748520474887,4.74605859,2708.6,2707.9,10.30201884]
[1748520475049,4.74605859,2708.6,2708.0,3.69268334]
[1748520475248,1.054,2708.6,2707.9,10.30201884]
[1748520475506,1.054,2708.6,2707.9,13.99483578]
[1748520475645,4.74602297,2708.6,2708.0,3.69276122]
[1748520476812,4.74602297,2708.6,2708.0,3.69267934]
[1748520477025,1.529,2708.7,2708.2,11.69248004]
[1748520477308,1.529,2708.7,2708.5,3.69203516]
[1748520477514,1.054,2708.8,2708.5,8.0]
[1748520477673,1.054,2708.8,2708.3,8.55]
[1748520478259,3.69191461,2708.7,2708.0,10.14364507]
[1748520478460,3.69191461,2708.7,2708.2,8.0]
[1748520478723,1.054,2708.8,2708.4,8.0]
[1748520479357,1.054,2708.8,2708.0,6.02964507]
[1748520479562,1.054,2708.8,2708.2,3.69248947]
[1748520479759,1.054,2708.8,2708.4,8.0]
[1748520480016,3.69189559,2708.7,2708.1,11.69259545]
[1748520480158,1.054,2708.8,2708.1,11.69259545]
[1748520480159,4.74573044,2708.8,2708.1,11.69259545]
[1748520480547,4.938,2708.8,2708.4,8.0]
[1748520480726,5.38056777,2708.9,2708.4,8.0]
[1748520480727,2.743,2708.9,2708.5,3.69208048]
[1748520480859,2.743,2708.9,2708.7,3.69169647]
[1748520481067,1.104,2708.9,2708.6,3.69189786]
[1748520481311,1.104,2708.9,2708.7,3.69176291]
[1748520481758,1.104,2708.9,2708.5,4.24204162]
[1748520481759,1.104,2708.9,2708.5,0.55]
[1748520481963,1.104,2708.9,2708.7,3.69172922]
[1748520482662,1.104,2708.9,2708.8,3.69167158]
[1748520482912,0.05,2708.9,2708.8,3.69167158]
[1748520483073,0.05,2708.9,2708.8,12.27858218]
[1748520483277,1.045,2709.4,2709.3,3.69099029]
[1748520483636,1.095,2709.9,2709.8,3.69030924]
[1748520484363,1.095,2709.9,2709.7,11.69038612]
[1748520484560,0.05,2709.9,2709.4,3.69081159]
[1748520484765,0.05,2709.9,2709.8,3.69030924]
[1748520485361,0.05,2709.9,2709.5,10.0]
[1748520485567,0.05,2709.9,2709.5,17.07728483]
[1748520485864,0.05,2709.9,2709.5,0.37672583]
[1748520486060,0.05,2709.9,2709.6,3.69056953]
[1748520486311,0.05,2709.9,2709.7,3.69035286]
[1748520486529,0.05,2709.9,2709.5,3.69069645]
[1748520486682,0.05,2709.9,2709.8,3.69030924]
[1748520487362,0.05,2709.9,2709.8,12.95154324]
[1748520487583,0.05,2709.9,2709.8,23.41574124]
[1748520488191,0.05,2709.9,2709.8,27.84374124]
[1748520489227,0.05,2709.9,2709.8,24.53078024]
[1748520491436,0.05,2709.9,2709.8,17.96426026]
[1748520491635,0.05,2709.9,2709.8,21.6545695]
[1748520492199,1.531,2710.8,2709.8,18.11416026]
[1748520492440,0.05,2710.9,2710.4,0.55]
[1748520492642,0.05,2710.9,2710.7,3.68904766]
[1748520492944,0.05,2710.9,2710.8,9.64492991]
[1748520493153,0.05,2710.9,2710.8,9.79482991]
[1748520493458,0.05,2710.9,2710.8,16.21597991]
[1748520493604,0.05,2710.9,2710.8,18.20648593]
[1748520494252,0.05,2711.9,2711.3,0.55]
[1748520494408,0.05,2711.9,2711.7,10.0]
[1748520494611,0.05,2711.9,2711.4,8.0]
[1748520494811,0.05,2711.9,2711.8,3.68758758]
[1748520495029,0.05,2711.9,2711.8,8.0]
[1748520495249,0.05,2711.9,2711.2,0.6999]
[1748520495447,1.595,2711.5,2711.0,3.68867249]
[1748520495631,1.595,2711.5,2710.9,0.55]
[1748520495632,1.045,2711.4,2711.1,3.68853136]
[1748520495832,1.045,2711.4,2711.1,8.59358211]
[1748520496046,1.5345,2711.8,2711.1,3.68850579]
[1748520496246,2.06169777,2711.8,2710.9,10.55]
[1748520496445,1.045,2711.7,2710.9,10.55]
[1748520496648,1.045,2711.7,2711.2,3.68839587]
[1748520496848,1.045,2711.7,2711.2,13.68839587]
[1748520497156,1.045,2711.7,2711.2,3.68839587]
[1748520497458,1.045,2711.7,2711.1,0.55]
[1748520497663,1.045,2711.7,2711.2,3.68838425]
[1748520497988,1.5345,2711.8,2711.3,0.55]
[1748520498156,1.044,2711.6,2711.3,10.55]
[1748520498475,1.044,2711.6,2711.3,4.23826762]
[1748520498772,1.044,2711.6,2711.5,0.55]
[1748520499389,1.044,2711.6,2711.4,3.6881214]
[1748520499390,1.044,2711.6,2711.4,0.55]
[1748520499669,1.044,2711.6,2711.2,11.68833962]
[1748520499973,3.68828463,2711.3,2710.3,0.1499]
[1748520500178,1.5848,2711.5,2710.4,15.019937]
[1748520500338,1.5848,2711.5,2710.9,3.6887339]
[1748520500533,1.5848,2711.5,2710.7,3.689084]
[1748520500534,1.5848,2711.5,2710.7,10.0]
[1748520500751,1.5848,2711.5,2711.2,8.0]
[1748520501393,1.5848,2711.5,2711.2,11.68831356]
[1748520501600,1.044,2711.7,2711.4,3.68813159]
[1748520501907,1.5613,2711.8,2711.3,3.68817317]
[1748520502047,1.5613,2711.8,2711.3,12.11198673]
[1748520502248,1.044,2711.7,2711.6,8.0]
[1748520502562,1.044,2711.7,2711.5,11.6878887]
[1748520502760,1.044,2711.7,2711.6,3.68785956]
[1748520502966,0.05,2711.9,2711.7,8.0]
[1748520503202,0.05,2711.9,2711.7,11.68765056]
[1748520503350,0.05,2711.9,2711.5,12.23792449]
[1748520503692,0.05,2711.9,2711.8,11.68758758]
[1748520504047,0.05,2711.9,2711.8,8.0]
[1748520504949,0.05,2711.9,2711.7,3.68770803]
[1748520505150,0.05,2711.9,2711.6,3.68778621]
[1748520505350,0.05,2711.9,2711.7,10.0]
[1748520505665,0.05,2711.9,2711.7,13.68759447]
[1748520505971,0.05,2711.9,2711.7,5.66052561]
[1748520506188,0.05,2711.9,2711.8,12.42558058]
[1748520506349,0.05,2711.9,2711.8,9.25265758]
[1748520507002,0.05,2711.9,2711.8,7.56936458]
[1748520507210,0.05,2711.9,2711.8,3.881777]
[1748520507779,0.05,2711.9,2711.8,8.0]
[1748520508008,0.05,2711.9,2711.8,11.4215]
[1748520508229,0.05,2711.9,2711.8,16.38123758]
[1748520509066,0.05,2711.9,2711.8,16.59793758]
[1748520510110,5.21766761,2712.8,2711.8,16.59793758]
[1748520510111,1.044,2712.6,2712.5,20.53107794]
[1748520510321,1.044,2712.6,2712.5,29.08107794]
[1748520510464,0.05,2712.9,2712.6,3.68642738]
[1748520510672,0.05,2712.9,2712.8,11.68622825]
[1748520511106,0.05,2712.9,2712.8,28.02066525]
[1748520511290,0.05,2712.9,2712.8,25.09321825]
[1748520511493,0.05,2712.9,2712.8,25.30991825]
[1748520513323,0.05,2712.9,2712.8,23.79756825]
[1748520513636,0.05,2712.9,2712.8,23.2935671]
[1748520513849,0.05,2712.9,2712.8,8.36291317]
[1748520514136,0.05,2712.9,2712.8,10.93670017]
[1748520514352,0.05,2712.9,2712.8,8.36291317]
[1748520514481,0.05,2712.9,2712.7,10.0]
[1748520514688,0.05,2712.9,2712.2,10.29774383]
[1748520514689,5.26580197,2712.9,2712.2,10.29774383]
[1748520514930,1.5796,2712.9,2712.6,3.640166]
[1748520515125,1.5796,2712.9,2712.6,10.791264]
[1748520515327,1.5796,2712.9,2712.4,8.0]
[1748520515328,1.5796,2712.9,2712.7,2.213332]
[1748520515634,1.5796,2712.9,2712.6,6.116259]
[1748520515926,1.5796,2712.9,2712.6,11.68644001]
[1748520516134,0.05,2712.9,2712.8,8.0]
[1748520516628,0.05,2712.9,2712.6,12.8550824]
[1748520516922,0.05,2712.9,2712.8,10.0]
[1748520517123,0.05,2712.9,2712.8,3.68622825]
[1748520517285,0.05,2712.9,2712.8,8.0]
[1748520517490,0.05,2712.9,2712.8,23.47635272]
[1748520517925,0.05,2712.9,2712.8,24.02635272]
[1748520522745,0.43209504,2715.5,2714.1,0.55]
[1748520522939,2.09059504,2715.9,2714.2,66.11732687]
[1748520523096,2.09059504,2715.9,2714.8,4.23351259]
[1748520523097,1.6585,2715.9,2714.8,4.23351259]
[1748520523299,1.6585,2715.9,2714.8,26.84300385]
[1748520523706,0.05,2715.9,2715.8,3.68215627]
[1748520523905,0.05,2715.9,2715.8,22.63946127]
[1748520524138,0.05,2715.9,2715.8,18.54921127]
[1748520524445,0.05,2715.9,2715.8,18.60648516]
[1748520524599,0.05,2715.9,2715.8,17.7638706]
[1748520525234,0.05,2715.9,2715.8,15.12502316]
[1748520525415,0.05,2715.9,2715.8,18.45702316]
[1748520525627,0.05,2715.9,2715.8,10.52353]
[1748520525855,0.05,2715.9,2715.8,13.85700227]
[1748520526173,0.05,2715.9,2715.8,14.40700227]
[1748520527336,0.05,2715.9,2715.8,18.51402627]
[1748520527630,0.05,2715.9,2715.8,17.91657227]
[1748520527934,0.05,2715.9,2715.8,18.28454711]
[1748520528163,0.05,2715.9,2715.8,21.24736701]
[1748520529530,0.05,2715.9,2715.8,25.12736701]
[1748520530743,0.05,2715.9,2715.8,21.24736701]
[1748520530944,0.05,2715.9,2715.8,25.13036701]
[1748520531534,0.05,2715.9,2715.8,17.98578401]
[1748520532062,0.05,2715.9,2715.8,8.36797484]
[1748520532251,0.05,2715.9,2715.8,14.47645411]
[1748520532578,0.05,2715.9,2715.8,15.02645411]
[1748520533970,0.05,2715.9,2715.8,15.18333711]
[1748520534451,0.05,2715.9,2715.8,14.63333711]
[1748520534655,0.05,2715.9,2715.8,8.36797484]
[1748520535076,0.05,2715.9,2715.8,12.05013111]
[1748520535392,0.05,2715.9,2715.8,15.70050743]
[1748520535554,0.05,2715.9,2715.8,13.62337243]
[1748520535934,0.05,2715.9,2715.8,17.23692243]
[1748520536275,0.05,2715.9,2715.8,17.78692243]
[1748520536485,0.05,2715.9,2715.8,16.50955143]
[1748520540653,0.05,2715.9,2715.8,14.38631011]
[1748520541054,0.05,2715.9,2715.8,10.70415384]
[1748520541246,0.05,2715.9,2715.8,14.38631011]
[1748520541893,0.05,2715.9,2715.8,10.70415384]
[1748520542079,1.5705,2715.9,2715.8,10.70415384]
[1748520542285,1.5705,2715.9,2715.3,3.882]
[1748520542286,1.5705,2715.9,2715.3,3.68274962]
[1748520542596,1.5705,2715.9,2715.4,3.68268287]
[1748520542763,1.5705,2715.9,2715.5,8.0]
[1748520543089,1.6376,2715.6,2715.4,0.36588325]
[1748520543252,1.6376,2715.6,2715.5,3.68256306]
[1748520543470,0.05,2715.9,2715.3,8.0]
[1748520543471,1.048,2715.7,2715.3,8.0]
[1748520543673,1.048,2715.7,2715.4,3.6826254]
[1748520543904,1.6873,2715.9,2715.6,8.0]
[1748520544105,1.048,2715.8,2715.5,8.0]
[1748520544305,1.048,2715.8,2715.6,3.68232]
[1748520544513,1.5486,2716.5,2716.1,0.55]
[1748520544676,1.048,2716.6,2716.5,11.68110327]
[1748520545215,1.5486,2716.8,2716.5,11.68110327]
[1748520545514,1.5486,2716.8,2716.1,4.23174956]
[1748520545515,1.049,2716.8,2716.7,3.68093643]
[1748520546074,1.5873,2717.1,2716.8,8.0]
[1748520546314,1.099,2716.9,2716.8,8.0]
[1748520546616,1.099,2716.9,2716.2,3.68150486]
[1748520546617,1.6437,2716.8,2716.2,0.55]
[1748520546774,1.6437,2716.8,2716.4,10.0]
[1748520546975,1.6437,2716.8,2716.4,11.681252]
[1748520547176,1.049,2716.7,2716.4,8.0]
[1748520547498,1.049,2716.7,2716.6,8.0]
[1748520547703,2.6927,2716.8,2716.5,11.68114397]
[1748520548693,2.6927,2716.8,2716.4,11.68127691]
[1748520549098,2.6927,2716.8,2716.5,3.68120615]
[1748520549722,2.6927,2716.8,2716.4,11.68124764]
[1748520549925,2.6927,2716.8,2716.4,13.39687833]
[1748520550239,2.6927,2716.8,2716.5,3.68119215]
[1748520550441,2.6927,2716.8,2716.4,13.39691267]
[1748520550615,2.6927,2716.8,2716.5,10.0]
[1748520551129,2.6917,2716.8,2716.5,10.0]
[1748520551314,2.6917,2716.8,2716.3,3.68147558]
[1748520551516,2.6917,2716.8,2716.5,10.0]
[1748520551715,2.6917,2716.8,2716.6,8.0]
[1748520552651,2.6917,2716.8,2716.3,11.6814142]
[1748520552815,2.6917,2716.8,2716.4,11.68130183]
[1748520553015,2.6917,2716.8,2716.6,8.0]
[1748520553845,2.6917,2716.8,2716.4,8.0]
[1748520554015,2.6917,2716.8,2716.4,13.68125975]
[1748520554214,2.6917,2716.8,2716.5,3.68119881]
[1748520554423,2.6917,2716.8,2716.6,8.0]
[1748520555023,2.6917,2716.8,2716.6,11.68105733]
[1748520555219,2.6917,2716.8,2716.6,8.0]
[1748520555907,2.6917,2716.8,2716.5,11.6812025]
[1748520556119,2.6917,2716.8,2716.5,3.6812025]
[1748520556348,2.6917,2716.8,2716.6,3.68107054]
[1748520556549,2.6917,2716.8,2716.7,8.0]
[1748520556714,2.6917,2716.8,2716.6,8.0]
[1748520557540,2.6917,2716.8,2716.5,3.47076964]
[1748520557858,0.05,2716.9,2716.4,0.2167]
[1748520558025,0.05,2716.9,2716.7,3.68080637]
[1748520558443,0.05,2716.9,2716.6,3.68100418]
[1748520561159,0.05,2716.9,2716.5,3.68114109]
[1748520562569,1.527,2716.8,2716.4,13.68127996]
[1748520562883,1.527,2716.8,2716.5,3.68120256]
[1748520563166,1.527,2716.8,2716.4,3.68133942]
[1748520563167,1.7895,2716.8,2716.4,3.68133942]
[1748520563367,1.7895,2716.8,2716.4,10.0]
[1748520563579,1.7895,2716.8,2716.3,3.68146585]
[1748520564289,1.6439,2716.3,2715.5,2.679964]
[1748520564440,1.6439,2716.3,2715.5,2.287964]
[1748520564643,1.048,2716.2,2715.7,10.0]
[1748520564837,1.048,2716.2,2715.9,3.68194]
[1748520565181,1.6439,2716.3,2716.0,0.55]
[1748520565377,1.6439,2716.3,2716.1,3.68167459]
[1748520565681,1.6439,2716.3,2716.0,3.68185383]
[1748520566048,1.6439,2716.3,2716.0,3.68188512]
[1748520566250,1.6439,2716.3,2716.1,3.68174392]
[1748520566449,1.6439,2716.3,2715.9,0.55]
[1748520566664,1.6439,2716.3,2716.1,3.68166844]
[1748520567237,1.6439,2716.3,2716.2,3.68161401]
[1748520567675,1.6439,2716.3,2716.1,3.6817058]
[1748520567862,1.6439,2716.3,2715.9,10.0]
[1748520568047,1.6439,2716.3,2716.1,3.68172786]
[1748520568233,1.6439,2716.3,2715.9,13.68202069]
[1748520568234,1.6439,2716.3,2716.2,3.68161401]
[1748520568434,1.048,2716.4,2716.1,3.68168976]
[1748520568879,1.6535,2716.5,2716.0,8.55]
[1748520569079,2.7015,2716.5,2716.0,4.23183574]
[1748520569275,2.7015,2716.5,2716.0,11.68182621]
[1748520569478,2.7015,2716.5,2716.0,8.0]
[1748520569656,6.38272239,2716.5,2716.0,8.0]
[1748520569854,2.7015,2716.5,2716.0,8.0]
[1748520570365,2.7015,2716.5,2715.7,4.23225307]
[1748520570366,2.05435542,2716.5,2715.7,10.0]
[1748520570678,3.68210505,2715.9,2715.5,0.3620337]
[1748520570864,1.5214,2715.8,2715.4,2.338424]
[1748520571068,1.048,2715.7,2715.6,8.0]
[1748520571267,1.048,2715.7,2715.4,2.338424]
[1748520571452,1.048,2715.7,2715.5,0.3660797]
[1748520571653,1.5214,2715.8,2714.4,3.68397417]
[1748520571983,5.20364077,2715.8,2715.1,11.68310559]
[1748520572184,3.68232982,2715.7,2715.1,3.68310559]
[1748520572386,2.5147569,2715.8,2714.6,3.90043203]
[1748520572387,6.19698051,2715.8,2715.3,8.0]
[1748520572692,3.68278647,2715.4,2714.7,3.68362285]
[1748520572847,5.25293777,2715.3,2714.7,3.68362285]
[1748520573182,5.2529828,2715.3,2714.6,3.68367416]
[1748520573510,5.2529828,2715.3,2714.7,3.68363265]
[1748520573680,1.5701,2715.3,2714.9,8.0]
[1748520574209,1.5701,2715.3,2714.9,11.68334952]
[1748520574410,1.5701,2715.3,2714.9,8.0]
[1748520575579,2.6091,2715.3,2715.0,3.68315872]
[1748520575772,2.6091,2715.3,2715.0,13.68315872]
[1748520576191,2.6091,2715.3,2714.6,4.80712511]
[1748520576418,3.68326539,2715.0,2714.2,4.06030702]
[1748520576618,3.68326539,2715.0,2714.4,10.0]
[1748520576619,1.602,2714.9,2714.4,10.0]
[1748520576787,1.602,2714.9,2714.2,4.06030702]
[1748520576788,5.28538418,2714.9,2714.2,4.06030653]
[1748520576989,3.68351306,2714.8,2714.4,8.0]
[1748520577189,1.602,2714.9,2714.2,0.37600953]
[1748520577389,3.68372188,2714.7,2714.1,3.73445439]
[1748520577618,1.608,2714.6,2714.2,8.0]
[1748520577914,1.04,2714.5,2714.1,12.86254277]
[1748520579425,1.04,2714.5,2714.2,3.68432672]
[1748520579925,1.04,2714.5,2714.4,8.0]
[1748520580074,1.04,2714.8,2714.4,3.68401952]
[1748520580279,1.04,2714.9,2714.5,13.68381929]
[1748520580501,1.04,2714.9,2714.5,10.0]
[1748520580726,1.04,2714.9,2714.4,12.05241927]
[1748520581299,1.04,2714.9,2714.5,3.68390927]
[1748520581504,1.04,2714.9,2714.4,8.36840195]
[1748520581702,3.68320458,2715.1,2714.5,3.68385061]
[1748520581903,1.04,2715.0,2714.6,3.68372265]
[1748520582257,1.04,2715.0,2714.6,10.0]
[1748520582392,1.04,2715.0,2714.6,6.35446]
[1748520582590,5.32168678,2715.2,2714.7,10.0]
[1748520582799,4.7231178,2715.1,2714.6,14.38339]
[1748520583108,4.7231178,2715.1,2714.6,8.0]
[1748520583693,3.68349784,2714.9,2714.5,8.0]
[1748520583921,1.6618,2714.8,2714.3,3.6841863]
[1748520584123,1.6618,2714.8,2714.3,11.6841863]
[1748520584437,5.34539841,2714.8,2714.3,8.0]
[1748520584646,1.6618,2714.8,2714.3,11.68416951]
[1748520585333,1.6618,2714.8,2714.5,8.0]
[1748520585837,2.6855,2715.1,2714.9,3.68329755]
[1748520585993,2.6855,2715.1,2714.8,11.68341226]
[1748520586198,1.6455,2715.1,2714.8,11.68341226]
[1748520586397,1.6455,2715.1,2714.8,8.0]
[1748520588205,1.6455,2715.1,2714.6,12.23372081]
[1748520589139,1.6455,2715.1,2714.8,8.0]
[1748520590131,1.6455,2715.1,2714.6,12.23373949]
[1748520590551,1.6455,2715.1,2714.8,3.68349971]
[1748520590849,3.68274105,2715.4,2714.8,3.68349971]
[1748520590850,1.04,2715.4,2715.1,3.68303868]
[1748520591162,1.04,2715.4,2715.0,11.68323009]
[1748520591660,1.04,2715.4,2715.1,3.68308657]
[1748520592251,1.6366,2715.7,2715.1,2.1383462]
[1748520592651,1.6366,2715.7,2715.2,3.68296794]
[1748520593689,1.6366,2715.7,2715.3,0.55]
[1748520593890,1.6366,2715.7,2715.3,12.23276705]
[1748520594191,1.6366,2715.7,2715.4,3.6826613]
[1748520594362,1.6366,2715.7,2715.6,3.68242745]
[1748520594548,7.946,2715.8,2715.3,12.397]
[1748520594752,7.946,2715.8,2715.5,3.68251876]
[1748520594985,7.946,2715.8,2715.4,3.68262465]
[1748520595289,7.946,2715.8,2715.5,3.68256306]
[1748520595850,7.946,2715.8,2715.3,16.07980876]
[1748520596497,7.946,2715.8,2715.4,3.68269119]
[1748520596705,7.946,2715.8,2715.3,16.0798233]
[1748520597281,7.946,2715.8,2715.4,3.68268937]
[1748520597664,7.946,2715.8,2715.3,16.07971329]
[1748520597997,7.946,2715.8,2715.3,16.07977909]
[1748520598767,11.62820758,2715.8,2715.3,3.844]
[1748520598973,7.946,2715.8,2715.3,3.844]
[1748520599169,11.62815698,2715.8,2715.4,8.0]
[1748520599561,11.62815698,2715.8,2715.3,8.0]
[1748520599900,11.6281947,2715.8,2715.2,2.403496]
[1748520600060,3.68236882,2715.7,2715.3,18.0]
[1748520600256,1.5267,2715.6,2715.1,8.0]
[1748520600463,3.68256726,2715.5,2715.1,8.0]
[1748520600698,1.5267,2715.6,2715.1,8.0]
[1748520600869,1.5267,2715.6,2715.1,11.68303559]
[1748520601260,1.5267,2715.6,2715.3,8.0]
[1748520601454,1.5267,2715.6,2715.0,3.68319505]
[1748520601455,1.5267,2715.6,2715.0,8.0]
[1748520601699,3.68271334,2715.4,2715.0,8.0]
[1748520601998,3.68271334,2715.4,2714.7,8.0]
[1748520601999,5.25240685,2715.4,2714.7,8.0]
[1748520602200,3.68318096,2715.1,2714.6,8.0]
[1748520602407,3.68318096,2715.1,2714.5,3.68385181]
[1748520602408,4.72313766,2715.1,2714.5,3.68385181]
[1748520602702,1.6362,2714.9,2714.2,10.0]
[1748520602855,2.6622,2714.9,2714.7,3.68357394]
[1748520603061,2.6622,2714.9,2714.6,11.6837333]
[1748520603254,2.6622,2714.9,2714.5,11.6838588]
[1748520603889,2.6622,2714.9,2714.2,1.17651577]
[1748520604160,6.34564764,2714.9,2714.3,15.52811374]
[1748520604357,2.6622,2714.9,2714.3,15.52811374]
[1748520605096,2.6622,2714.9,2714.5,11.6839194]
[1748520605305,1.529,2715.2,2714.7,8.0]
[1748520605455,1.529,2715.2,2714.7,3.68363452]
[1748520605994,1.529,2715.2,2714.9,8.0]
[1748520606196,1.529,2715.2,2714.9,3.68337379]
[1748520606503,2.555,2715.2,2714.9,11.68337379]
[1748520607095,2.555,2715.2,2715.1,3.68310559]
[1748520607306,2.555,2715.2,2715.0,11.68320414]
[1748520607802,2.555,2715.2,2715.0,8.0]
[1748520607997,2.555,2715.2,2714.9,11.68331945]
[1748520608204,1.026,2715.3,2715.0,3.68318564]
[1748520608371,1.5333,2715.4,2715.0,3.6831813]
[1748520608595,1.5333,2715.4,2715.2,3.68288732]
[1748520608796,5.21533371,2715.9,2715.3,3.68275435]
[1748520608984,1.026,2715.8,2715.2,3.68295787]
[1748520609320,1.026,2715.8,2715.4,3.68265057]
[1748520609623,1.5333,2715.9,2715.3,8.0]
[1748520609836,2.5593,2715.9,2715.6,3.68233419]
[1748520609977,2.5593,2715.9,2715.4,3.68269868]
[1748520610181,2.5593,2715.9,2715.6,3.68240982]
[1748520610421,2.5593,2715.9,2715.7,3.68224326]
[1748520610583,1.5333,2715.9,2715.7,3.6822791]
[1748520610786,1.5333,2715.9,2715.8,3.68215627]
[1748520611011,2.6014,2716.1,2716.0,3.68188512]
[1748520611216,2.6014,2716.1,2715.9,3.68198271]
[1748520611380,2.6014,2716.1,2716.0,3.68188512]
[1748520611583,1.026,2716.3,2716.0,3.68188512]
[1748520612000,1.026,2716.5,2715.7,8.55]
[1748520612294,1.026,2716.5,2716.2,3.68161179]
[1748520612507,1.6495,2716.6,2715.8,1.26107]
[1748520612508,1.6495,2716.6,2716.3,3.68134424]
[1748520612691,1.026,2716.5,2716.3,3.68134424]
[1748520613489,1.026,2716.5,2716.2,8.0]
[1748520613686,1.026,2716.5,2716.2,11.68148804]
[1748520614218,1.026,2716.5,2716.3,3.68140175]
[1748520614524,3.894,2716.9,2716.2,0.2167]
[1748520614525,1.6436,2716.9,2716.2,0.2167]
[1748520614829,1.025,2716.8,2716.6,3.68101718]
[1748520615539,1.025,2716.8,2716.5,3.68110869]
[1748520615702,0.05,2716.9,2716.7,3.68081992]
[1748520616219,0.05,2716.9,2716.6,3.68103825]
[1748520616627,0.05,2716.9,2716.8,3.68080094]
[1748520617888,0.05,2716.9,2716.5,8.55]
[1748520618089,0.05,2716.9,2716.8,3.68080094]
[1748520618834,0.05,2716.9,2716.8,20.15905894]
[1748520619035,0.05,2716.9,2716.8,11.68080094]
[1748520619334,0.05,2716.9,2716.8,14.85249094]
[1748520619628,0.05,2716.9,2716.8,13.76297194]
[1748520620423,0.05,2716.9,2716.8,16.07903182]
[1748520621149,0.05,2716.9,2716.8,19.92103182]
[1748520621678,0.05,2716.9,2716.8,20.29382068]
[1748520624069,0.05,2716.9,2716.8,8.4947637]
[1748520624364,0.05,2716.9,2716.8,0.37278886]
[1748520624558,0.05,2716.9,2716.8,4.0535898]
[1748520624774,0.05,2716.9,2716.7,10.0]
[1748520625062,0.05,2716.9,2716.5,5.30664251]
[1748520625267,0.05,2716.9,2716.6,10.0]
[1748520625629,0.05,2716.9,2716.6,3.68105571]
[1748520625827,1.6647,2716.8,2716.4,0.3741125]
[1748520626072,1.93867,2716.8,2716.3,3.68141145]
[1748520626256,1.93867,2716.8,2715.7,10.0]
[1748520626257,1.6647,2716.7,2715.7,10.0]
[1748520626461,1.6647,2716.3,2715.8,3.739949]
[1748520626662,1.6647,2716.3,2715.9,3.412728]
[1748520626975,1.025,2716.5,2716.2,3.68161401]
[1748520627193,4.96414664,2716.5,2715.7,4.21238534]
[1748520627343,4.96414664,2716.5,2715.9,13.68194279]
[1748520627540,4.96414664,2716.5,2715.9,3.68194279]
[1748520627737,1.28293,2716.5,2715.8,3.68210585]
[1748520627931,3.68141415,2716.4,2715.9,10.0]
[1748520628131,3.68170669,2716.2,2715.7,8.37038534]
[1748520628453,3.68170669,2716.2,2715.3,8.0]
[1748520628454,1.5194,2716.1,2715.3,8.0]
[1748520628761,1.5194,2716.1,2715.2,7.361249]
[1748520628762,1.5194,2716.1,2715.6,8.0]
[1748520628939,1.5194,2716.1,2715.6,3.68242199]
[1748520629339,1.5194,2716.1,2715.6,4.04464437]
[1748520629664,2.03950605,2716.1,2715.6,8.36222238]
[1748520629871,1.5194,2716.1,2715.6,11.68240103]
[1748520630265,2.5444,2716.1,2715.7,8.0]
[1748520630439,2.5444,2716.1,2715.5,11.68246059]
[1748520630642,2.5444,2716.1,2715.5,11.68253747]
[1748520631198,2.5444,2716.1,2715.5,8.0]
[1748520631371,2.5444,2716.1,2715.5,8.37457714]
[1748520631372,6.22616378,2716.1,2715.5,8.37457714]
[1748520631546,3.93640727,2716.0,2715.5,8.37457714]
[1748520631944,3.93635255,2716.0,2715.5,8.0]
[1748520632468,3.68202099,2715.9,2715.5,8.0]
[1748520633146,0.25444,2716.0,2715.5,8.0]
[1748520633147,3.93636646,2716.0,2715.5,8.0]
[1748520633484,0.25444,2716.0,2715.5,8.0]
[1748520633940,0.25444,2716.0,2715.5,11.68256089]
[1748520634142,3.68212547,2715.9,2715.5,8.0]
[1748520634344,1.01627579,2715.9,2715.2,3.842]
[1748520634587,0.25444,2716.0,2714.9,10.0]
[1748520634884,1.6577,2715.5,2715.0,8.0]
[1748520635084,1.6577,2715.5,2715.0,3.68322219]
[1748520635246,1.6577,2715.5,2715.4,8.0]
[1748520635877,1.6577,2715.5,2715.2,8.0]
[1748520636178,1.6577,2715.5,2715.2,11.68292277]
[1748520636589,1.6577,2715.5,2715.1,8.37060198]
[1748520636742,5.34027137,2715.5,2715.2,10.0]
[1748520636947,3.68280669,2715.4,2714.8,13.196236]
[1748520637254,1.5887,2715.2,2714.5,9.98991469]
[1748520637578,1.5887,2715.2,2714.8,10.0]
[1748520637883,1.5887,2715.2,2714.9,3.68334032]
[1748520638085,1.025,2715.4,2714.9,3.68327757]